Workbook

Sheet от 1года до 3 лет
A1: Утверждаю | H1: Согласовано
A2: Директор ООО"АБК - Пэймент" | H2: Руководитель дошкольной образовательной
A3: Рахматуллин Р.Р. | H3: организации
E6: Примерное 10-дневное меню
E7: для организации питания детей в дошкольных учреждениях
E8: с 12 - часовым пребыванием от 1 года до 3 лет
A10: День 1 - ый
A11: Наименование блюд и | C11: Масса | D11: Кол - во | E11: Кол - во | F11: Пищевые вещества | I11: Энергетическая | J11: витамин | K11: Сборник
A12: продуктов | C12: порции | D12: (в гр ) | E12: (в гр ) | I12: ценность | K12: рецептур
D13: брутто | E13: нетто | F13: белки | G13: жиры | H13: угл-ды | I13: Ккал | J13: С
A15: Каша кукурузная молочная с маслом сливочным | C15: 140/4 | F15: 5.32 | G15: 5.60 | H15: 35.51 | I15: 214.00 | J15: 0.67 | K15: ТТК № 2Д
B16: Крупа кукурузная | D16: 18 | E16: 18
B17: Молоко | D17: 70 | E17: 70
B18: Вода | D18: 53 | E18: 53
B19: Сахар | D19: 2 | E19: 2
B20: соль иодированная | D20: 0.4 | E20: 0.4
B21: Масло сливочное | D21: 4 | E21: 4
A22: Кофейный напиток с молоком | C22: 180/6 | F22: 2.85 | G22: 2.41 | H22: 5.99 | I22: 42.67 | J22: 1.17 | K22: №414 Дели 2016
B23: Кофейный напиток | D23: 2.50 | E23: 2.50
B24: Сахар | D24: 6.00 | E24: 6.00
B25: Молоко | D25: 90.00 | E25: 90.00
B26: Вода | D26: 108.00 | E26: 108.00
A27: Бутерброд с маслом сливочным | C27: 25/5 | F27: 1.92 | G27: 4.36 | H27: 12.92 | I27: 98.50 | K27: №1 Дели 2016
B28: Батон нарезной | D28: 25 | E28: 25
B29: Масло сливочное | D29: 5 | E29: 5
A30: Итого: | C30: 360 | F30: =F27+F22+F15 -> 10.09 | G30: =G27+G22+G15 -> 12.37 | H30: 54.42 | I30: 355.17 | J30: 1.84
B31: 2 - ой ЗАВТРАК
A32: Фрукты свежие | C32: 100 | D32: 100 | E32: 100 | F32: 0.40 | G32: 0.40 | H32: 9.80 | I32: 47.00 | J32: 10.00 | K32: №386 СБ
A33: (яблоки,или апельсин, или банан,или мандарин) | K33: дошк.2016
A34: Итого: | C34: 100 | F34: =F32 -> 0.40 | G34: =G32 -> 0.40 | H34: 9.80 | I34: 47.00 | J34: 10.00
B35: ОБЕД
A36: Помидоры свежие | C36: 40 | F36: 0.44 | G36: 0.08 | H36: 1.52 | I36: 8.8 | K36: №71 Дели 2017
B37: помидоры | D37: 40.80 | E37: 40.00
A38: Суп гороховый с картофелем, на курином бульоне, с гренками | C38: 150/10 | F38: 4.54 | G38: 3.32 | H38: 17.53 | I38: 125.77 | J38: 3.50 | K38: СБ дошк.2016 №87, 128
B39: Картофель | D39: 40.05 | E39: 30
B40: Горох колотый | D40: 12.15 | E40: 12
B41: лук репчатый | D41: 7.2 | E41: 6
B42: Морковь | D42: 9.6 | E42: 7.5
B43: соль иодированная | D43: 0.5 | E43: 0.5
B44: Масло растительное | D44: 3 | E44: 3
B45: Бульон | D45: 105 | E45: 105
B46: гренки пшеничные: | E46: 10
B47: хлеб пшеничный | D47: 18.75 | E47: 15.75
A48: Плов из отварной птицы | C48: 150 | F48: 12.71 | G48: 7.85 | H48: 26.80 | I48: 229.00 | J48: 4.52 | K48: №321 сбдошк2016
B49: цыплята-бройлеры с/м | D49: 58.50 | E49: 55.2
B50: масса отварной птицы | E50: 24.0
B51: масло сливочное | D51: 5.0 | E51: 5.0
B52: Лук репчатый | D52: 8.9 | E52: 7.5
B53: Морковь | D53: 12.5 | E53: 10.0
B54: Крупа рисовая | D54: 32.0 | E54: 32.0
B55: вода | D55: 65.0 | E55: 65.0
B56: соль иодированная | D56: 0.5 | E56: 0.5
B57: масса гарнира | E57: 126.0
A58: Компот из урюка | C58: 150 | F58: 0.35 | G58: 0.02 | H58: 13.83 | I58: 56.83 | J58: 0.00 | K58: №394 СБ дошк 2016
B59: урюк | D59: 15.3 | E59: 15.0
B60: масса отварных сухофруктов | E60: 24.0
B61: Вода | D61: 152 | E61: 152.0
B62: сахар | D62: 5 | E62: 5
A63: Хлеб ржаной | C63: 35 | D63: 35 | E63: 35 | F63: 2.31 | G63: 0.42 | H63: 13.85 | I63: 69.23 | K63: табл 6 стр 144,Дели + 2012
A64: Итого: | C64: 535 | F64: =F63+F58+F48+F38+F36 -> 20.35 | G64: =G63+G58+G48+G38+G36 -> 11.68 | H64: =H63+H58+H48+H38+H36 -> 73.52 | I64: =I63+I58+I48+I38+I36 -> 489.63 | J64: =J63+J58+J48+J38+J36 -> 8.02
B65: УПЛОТНЕННЫЙ ПОЛДНИК
A66: Кисломолочный напиток | C66: 150/2 | F66: 4.35 | G66: 3.75 | H66: 8.00 | I66: 83.00 | J66: 1.05 | K66: №420 Сб дошк 2016
A67: (Кефир,ряженка,катык,напиток ацидофильный) | B67: кисломолочный напиток | D67: 155 | E67: 150
B68: сахар | D68: 2 | E68: 2
A69: Котлеты рыбные | C69: 50 | F69: 6.41 | G69: 3.41 | H69: 5.58 | I69: 72.63 | J69: 0.33 | K69: №234 сб шк 2017
B70: рыба (минтай с/м БГ) | D70: 45.22 | E70: 33.0
B71: соль иодированная | D71: 0.5 | E71: 0.5
B72: хлеб пшеничный | D72: 9.0 | E72: 9.0
B73: молоко | D73: 13.00 | E73: 13.0
B74: сухари панировочные | D74: 5.0 | E74: 5.0
B75: масса полуфабриката | E75: 58.0
B76: масло растительное | D76: 2.0 | E76: 2.0
A77: Пюре Картофельное | C77: 120 | F77: 2.45 | G77: 3.84 | H77: 16.35 | I77: 109.80 | J77: 14.53 | K77: № 339 СБ дошк 2016
B78: Картофель | D78: 136.80 | E78: 102.60
B79: Молоко | D79: 18.96 | E79: 18.00
B80: Масло сливочное | D80: 4.20 | E80: 4.20
B81: соль иодированная | D81: 0.45 | E81: 0.45
A82: Чай с сахаром | C82: 150/5 | F82: 0.053 | G82: 0.015 | H82: 5.020 | I82: 20.080 | J82: 0.030 | K82: №410,411 Дели2016
B83: чай весовой | D83: 0.4 | E83: 0.4
B84: Сахар | D84: 5 | E84: 5
B85: Вода | D85: 150 | E85: 150
A86: Кондитерские изделия | B86: вафли | C86: 20 | D86: 20.00 | E86: 20.00 | F86: 1.50 | G86: 1.96 | H86: 14.88 | I86: 83.40 | K86: табл 6 стр 136,Ддели +,2012
A87: Хлеб пшеничный | C87: 20 | D87: 20.00 | E87: 20.00 | F87: 1.52 | G87: 0.16 | H87: 9.84 | I87: 47.00 | J87: 0.00 | K87: табл 6 стр 134,Дели + 2012
A88: Итого: | C88: 517 | F88: =F66+F87+F86+F82+F77+F69 -> 16.29 | G88: =G66+G87+G86+G82+G77+G69 -> 13.14 | H88: =H66+H87+H86+H82+H77+H69 -> 59.67 | I88: =I66+I87+I86+I82+I77+I69 -> 415.91 | J88: =J66+J87+J86+J82+J77+J69 -> 15.94
A89: ВСЕГО: | C89: =C30+C34+C64+C88 -> 1512 | F89: =F30+F34+F64+F88 -> 47.12 | G89: =G30+G34+G64+G88 -> 37.59 | H89: =H30+H34+H64+H88 -> 197.42 | I89: =I30+I34+I64+I88 -> 1307.71 | J89: =J30+J34+J64+J88 -> 35.80
A91: День 2- ой
A92: Наименование блюд и | C92: Масса | D92: Кол - во | E92: Кол - во | F92: Пищевые вещества | I92: Энергетическая | J92: Витамин | K92: Сборник
A93: продуктов | C93: порции | D93: (в гр ) | E93: (в гр ) | I93: ценность | K93: рецептур
D94: брутто | E94: нетто | F94: белки | G94: жиры | H94: угл-ды | I94: Ккал | J94: С
B95: ЗАВТРАК
A96: Каша полбяная молочная с маслом сливочным | C96: 140/3 | F96: 3.76 | G96: 6.13 | H96: 22.96 | I96: 162.00 | J96: 0.67 | K96: ТТК №1Д
B97: Крупа полбяная | D97: 18 | E97: 18
B98: Молоко | D98: 70 | E98: 70
B99: вода | D99: 53 | E99: 53
B100: Сахар | D100: 2 | E100: 2
B101: соль иодированная | D101: 0.4 | E101: 0.4
B102: Масло сливочное | D102: 3 | E102: 3
A103: Какао с молоком | C103: 180/6 | F103: 3.67 | G103: 3.19 | H103: 5.99 | I103: 58.83 | J103: 1.43 | K103: №416 Дели2016
B104: Какао-порошок | D104: 2.00 | E104: 2.00
B105: Сахар | D105: 6.00 | E105: 6.00
B106: Молоко | D106: 110.00 | E106: 110.00
B107: Вода | D107: 80.00 | E107: 80.00
A108: Бутерброд с сыром, маслом сливочным | C108: 25/5/5 | F108: 3.23 | G108: 5.09 | H108: 12.92 | I108: 115.67 | J108: 0.04 | K108: №3 сб дошк2016
B109: Батон нарезной | D109: 25 | E109: 25
B110: Сыр | D110: 5.1 | E110: 5
B111: Масло сливочное | D111: 5 | E111: 5
A112: Итого: | C112: 364 | F112: =F108+F103+F96 -> 10.66 | G112: =G108+G103+G96 -> 14.41 | H112: 41.87 | I112: 336.50 | J112: 2.14
B113: 2 - ой ЗАВТРАК
A114: Сок в инд упаковке | C114: 125 | D114: 125 | E114: 125 | F114: 0.63 | G114: 0.00 | H114: 12.63 | I114: 53.00 | J114: 2.50 | K114: №418 Дели2016
A115: Итого: | C115: 125 | F115: =F114 -> 0.63 | G115: =G114 -> 0.00 | H115: 12.63 | I115: 53.00 | J115: 2.50
B116: ОБЕД
A117: Салат из свежей капусты | C117: 40 | F117: 0.56 | G117: 2.03 | H117: 3.61 | I117: 34.96 | J117: 1.86 | K117: №21 сб дошк 2016
B118: капуста свежая | D118: 46.00 | E118: 37.00
B119: масса прогретой капусты | E119: 33.4
B120: морковь | D120: 5.00 | E120: 4.00
B121: Сахар | D121: 0.70 | E121: 0.70
B122: Масло растительное | D122: 2.00 | E122: 2.00
B123: соль иодированная | D123: 0.20 | E123: 0.20
A124: Борщ со свежей капустой, картофелем на курином бульоне, со сметаной | C124: 150/7 | F124: 1.26 | G124: 4.00 | H124: 6.81 | I124: 73.58 | J124: 6.43 | K124: №63,сбдошк2016
B125: Капуста свежая | D125: 15.0 | E125: 12.0
B126: Картофель | D126: 15.96 | E126: 12.0
B127: Морковь | D127: 7.5 | E127: 6.0
B128: Лук репчатый | D128: 7.14 | E128: 6.0
B129: Свекла | D129: 30.72 | E129: 24.0
B130: Сахар | D130: 0.8 | E130: 0.8
B131: Масло растительное | D131: 3.0 | E131: 3.0
B132: соль иодированная | D132: 0.5 | E132: 0.5
B133: Бульон | D133: 120 | E133: 120.0
B134: Сметана | D134: 7.0 | E134: 7.0
B135: Томатная паста | D135: 0.8 | E135: 0.8
A136: Биточки "Домашние" | C136: 50 | F136: 7.41 | G136: 5.79 | H136: 10.68 | I136: 110.54 | J136: 0.05 | K136: Акт проработки от 25.12.2018 №569
B137: цыплята - бройлеры с/м | D137: 60.68 | E137: 39.4
B138: или фарш куриный | D138: 41.37 | E138: 39.4
B139: морковь | D139: 11.85 | E139: 9.4
B140: Лук репчатый | D140: 14.4 | E140: 12
B141: Масло растительное | D141: 1 | E141: 1
B142: масса припущенного лука | E142: 6
B143: соль иодированная | D143: 0.4 | E143: 0.4
B144: яйцо | D144: 0.6 | E144: 0.5
B145: Мука пшеничная | D145: 3.75 | E145: 3.75
B146: масса полуфабриката | E146: 59
B147: масло растительное | D147: 2 | E147: 2
A148: Каша гречневая рассыпчатая с овощами с маслом сливочным | C148: 110/2 | F148: 3.21 | G148: 1.62 | H148: 22.36 | I148: 116.60 | J148: 0.41 | K148: №180, сб дошк2016
B149: крупа гречневая | D149: 47.6 | E149: 47.6
B150: вода питьевая | D150: 71.0 | E150: 71.0
B151: соль иодированная | D151: 0.3 | E151: 0.3
B152: масса каши | E152: 100.0
B153: морковь | D153: 16.5 | E153: 13.2
B154: лук репчатый | D154: 2.0 | E154: 1.7
B155: масса каши с овощами | E155: 110.0
B156: масло сливочное | D156: 2.0 | E156: 2.0
A157: Напиток из сухофруктов | C157: 150 | F157: 0.50 | G157: 0.07 | H157: 14.00 | I157: 60 | J157: 0.54 | K157: №394 Сб дошк 2016
B158: сухофрукты | D158: 12.75 | E158: 12.50
B159: Сахар | D159: 5.00 | E159: 5.00
B160: вода | D160: 152.00 | E160: 152.00
A161: Хлеб пшеничный | C161: 20 | D161: 20 | E161: 20 | F161: 1.52 | G161: 0.16 | H161: 9.84 | I161: 47.00 | J161: 0.00 | K161: табл 6 стр 134,Дели + 2012
A162: Хлеб ржаной | C162: 35 | D162: 35 | E162: 35 | F162: 2.31 | G162: 0.42 | H162: 13.85 | I162: 69.23 | K162: табл 6 стр 144,Дели + 2012
A163: Итого: | C163: 564 | F163: =F162+F161+F157+F148+F136+F124+F117 -> 16.77 | G163: =G162+G161+G157+G148+G136+G124+G117 -> 14.08 | H163: 81.14 | I163: 511.91 | J163: 9.29
B164: УПЛОТНЕННЫЙ ПОЛДНИК
A165: Кисломолочный напиток | C165: 150 | F165: 4.35 | G165: 3.75 | H165: 6.30 | I165: 76.00 | J165: 0.45 | K165: №420 Сб дошк 2016
A166: (кефир,ряженка,катык,напиток ацидофильный) | B166: кисломолочный напиток | D166: 155 | E166: 150
A167: Запеканка творожная с повидлом | C167: 110/20 | F167: 19.33 | G167: 16.98 | H167: 21.93 | I167: 317.80 | J167: 0.49 | K167: № 251 сб дошк 2016
B168: Творог | D168: 103.2 | E168: 101.2
B169: крупа манная | D169: 6.6 | E169: 6.6
B170: Яйцо | D170: 5.28 | E170: 4.4
B171: Сахар | D171: 8.8 | E171: 8.8
B172: Сметана | D172: 4.4 | E172: 4.4
B173: Масло сливочное | D173: 4.4 | E173: 4.4
B174: Сухари панировочные | D174: 4.4 | E174: 4.4
B175: соль иодированная | D175: 0.55 | E175: 0.55
B176: повидлом | D176: 20.40 | E176: 20.00
A177: Чай с сахаром и лимоном | C177: 150/5/5 | F177: 0.10 | G177: 0.02 | H177: 5.17 | I177: 21.78 | J177: 2.24 | K177: №412 Дели2016
B178: чай весовой | D178: 0.4 | E178: 0.4
B179: Сахар | D179: 5 | E179: 5
B180: лимон | D180: 5.55 | E180: 5
B181: Вода | D181: 150.0 | E181: 150.0
A182: Булочка дорожная | C182: 35 | F182: 2.73 | G182: 4.90 | H182: 18.25 | I182: 126.70 | K182: №453 сб дошк2016
B183: Мука пшеничная | D183: 21.35 | E183: 21.00
B184: мука пшеничная на подпыл | D184: 0.70 | E184: 0.70
B185: Сахар | D185: 4.20 | E185: 4.20
B186: Масло сливочное | D186: 4.55 | E186: 4.55
B187: соль иодированная | D187: 0.21 | E187: 0.21
B188: дрожжи сухие | D188: 0.14 | E188: 0.14
B189: вода | D189: 10.70 | E189: 10.70
B190: масса полуфабриката | E190: 39.90
B191: для крошки:
B192: мука пшеничная | D192: 0.84 | E192: 0.84
B193: масло сливочное | D193: 0.70 | E193: 0.70
B194: масса крошки | E194: 1.40
B195: масло растительное для смазки изделй | D195: 0.70 | E195: 0.70
A196: Итого: | C196: 475 | F196: =F165+F182+F177+F167 -> 26.51 | G196: =G165+G182+G177+G167 -> 25.65 | H196: =H165+H182+H177+H167 -> 51.65 | I196: =I165+I182+I177+I167 -> 542.28 | J196: =J165+J182+J177+J167 -> 3.18
A197: ВСЕГО: | C197: =C112+C115+C163+C196 -> 1528 | F197: =F112+F115+F163+F196 -> 54.57 | G197: =G112+G115+G163+G196 -> 54.14 | H197: =H112+H115+H163+H196 -> 187.29 | I197: =I112+I115+I163+I196 -> 1443.69 | J197: =J112+J115+J163+J196 -> 17.11
A199: День 3 - ий
A200: Наименование блюд и | C200: Масса | D200: Кол - во | E200: Кол - во | F200: Пищевые вещества | I200: Энергетическая | J200: Витамин | K200: Сборник
A201: продуктов | C201: порции | D201: (в гр ) | E201: (в гр ) | I201: ценность | K201: рецептур
D202: брутто | E202: нетто | F202: белки | G202: жиры | H202: угл-ды | I202: Ккал | J202: С
B203: ЗАВТРАК
A204: Каша "Дружба" молочная с маслом сливочным | C204: 140/3 | F204: 4.22 | G204: 4.92 | H204: 23.38 | I204: 155.60 | J204: 0.60 | K204: ТТК №7Д
B205: Крупа рисовая | D205: 10 | E205: 10
B206: Крупа пшенная | D206: 7.5 | E206: 7.5
... 826 more rows

Sheet от 3 до 7 лет
A1: Утверждаю | H1: Согласовано
A2: Директор ООО"АБК - Пэймент" | H2: Руководитель дошкольной образовательной
A3: Рахматуллин Р.Р. | H3: организации
C5: Примерное 10-дневное меню
C6: для организации питания детей в дошкольных учреждениях
C7: с 12 - часовым пребыванием от 3 до 7 лет
A9: День 1 - ый
A10: Наименование блюд и | C10: Масса | D10: Кол - во | E10: Кол - во | F10: Пищевые вещества | I10: Энергетическая | J10: Витамин | K10: Сборник рецептур
A11: продуктов | C11: порции | D11: (в гр ) | E11: (в гр ) | I11: ценность
D12: брутто | E12: нетто | F12: белки | G12: жиры | H12: угл-ды | I12: Ккал | J12: С
B13: ЗАВТРАК
A14: Каша кукурузная молочная с маслом сливочным | C14: 180/5 | F14: 6.84 | G14: 7.10 | H14: 45.66 | I14: 274.20 | J14: 0.86 | K14: ТТК №2Д
B15: Крупа кукурузная | D15: 22.50 | E15: 22.50
B16: Молоко | D16: 90.00 | E16: 90.00
B17: Вода | D17: 68.00 | E17: 68.00
B18: Сахар | D18: 2.50 | E18: 2.50
B19: соль иодированная | D19: 0.50 | E19: 0.50
B20: Масло сливочное | D20: 5.00 | E20: 5.00
A21: Кофейный напиток с молоком | C21: 180/6 | F21: 2.85 | G21: 2.41 | H21: 5.99 | I21: 42.67 | J21: 1.17 | K21: №414 Дели 2016
B22: Кофейный напиток | D22: 2.50 | E22: 2.50
B23: Сахар | D23: 6.00 | E23: 6.00
B24: Молоко | D24: 90.00 | E24: 90.00
B25: Вода | D25: 108.00 | E25: 108.00
A26: Бутерброд с маслом сливочным | C26: 30/5 | F26: 2.29 | G26: 4.50 | H26: 15.49 | I26: 111.68 | K26: №1 Дели2016
B27: Батон нарезной | D27: 30.00 | E27: 30.00
B28: Масло сливочное | D28: 5.00 | E28: 5.00
A29: Итого: | C29: 406 | F29: =F26+F21+F14 -> 11.98 | G29: =G26+G21+G14 -> 14.01 | H29: 67.14 | I29: 428.55 | J29: 2.03
B30: 2 - ой ЗАВТРАК
A31: Фрукты свежие | C31: 100 | D31: 100 | E31: 100 | F31: 0.40 | G31: 0.40 | H31: 9.80 | I31: 47.00 | J31: 10.00 | K31: №386 СБ
A32: (яблоки,или апельсин, или банан,или мандарин ) | K32: дошк.2016
A33: Итого: | C33: 100 | F33: =F31 -> 0.40 | G33: =G31 -> 0.40 | H33: 9.80 | I33: 47.00 | J33: 10.00
B34: ОБЕД
A35: Помидоры свежие порционно | C35: 60 | F35: 0.66 | G35: 0.12 | H35: 2.28 | I35: 13.20 | J35: 10.50 | K35: №71 сб 2017
B36: помидоры свежие | D36: 61.20 | E36: 60.00
A37: Суп гороховый с картофелем на курином бульоне, с гренками | C37: 180/10 | F37: 5.20 | G37: 3.95 | H37: 19.51 | I37: 143.56 | J37: 4.19 | K37: №87, сб дошк2016
B38: Картофель | D38: 53.20 | E38: 40.00
B39: Горох | D39: 16.20 | E39: 16.00
B40: Морковь | D40: 12.80 | E40: 10.00
B41: Лук репчатый | D41: 9.60 | E41: 8.00
B42: Масло растительное | D42: 4.00 | E42: 4.00
B43: соль иодированная | D43: 0.60 | E43: 0.60
B44: Бульон | D44: 140.00 | E44: 140.00
B45: гренки пшеничные: | E45: 10
B46: хлеб пшеничный | D46: 18.75 | E46: 15.75
A47: Плов из отварной птицы | C47: 200 | F47: 11.19 | G47: 10.93 | H47: 31.80 | I47: 282.55 | J47: 0.18 | K47: №321 сбдошк2016
B48: цыплята-бройлеры с/м | D48: 78.00 | E48: 73.6
B49: масса отварной птицы | E49: 32.0
B50: масло сливочное | D50: 8.0 | E50: 8.0
B51: Лук репчатый | D51: 11.9 | E51: 10.00
B52: Морковь | D52: 16.3 | E52: 13.00
B53: Крупа рисовая | D53: 55.0 | E53: 55.0
B54: вода | D54: 86.0 | E54: 86.0
B55: соль иодированная | D55: 0.8 | E55: 0.8
B56: масса гарнира | E56: 168.0
A57: Компот из урюка | C57: 180/6 | F57: 0.40 | G57: 0.02 | H57: 16.60 | I57: 68.20 | J57: 2.44 | K57: №394 сб дошк 2016
B58: урюк | D58: 18.4 | E58: 18.0
B59: Сахар | D59: 6 | E59: 6.0
B60: вода | D60: 183 | E60: 183.0
A61: Хлеб ржаной | C61: 45 | D61: 45.00 | E61: 45.00 | F61: 2.97 | G61: 0.54 | H61: 17.84 | I61: 89.19 | K61: табл 6 стр 144,Дели + 2012
A62: Итого: | C62: 681 | F62: =F61+F57+F47+F37+F35 -> 20.42 | G62: =G61+G57+G47+G37+G35 -> 15.56 | H62: =H61+H57+H47+H37+H35 -> 88.03 | I62: =I61+I57+I47+I37+I35 -> 596.70 | J62: =J61+J57+J47+J37+J35 -> 17.31
B63: УПЛОТНЕННЫЙ ПОЛДНИК
A64: Кисломолочный напиток | C64: 180/3 | F64: 5.22 | G64: 4.50 | H64: 10.19 | I64: 102.00 | J64: 1.26 | K64: №420 СБ дошк 2016
A65: (Кефир,ряженка,катык,напиток ацидофильный) | B65: кисломолочный напиток | D65: 185.00 | E65: 180.00
B66: сахар | D66: 3.00 | E66: 3.00
A67: Котлеты рыбные | C67: 70 | F67: 8.99 | G67: 4.26 | H67: 7.82 | I67: 101.72 | J67: 0.46 | K67: №234 сб шк 2017
B68: рыба (минтай с/м БГ) | D68: 63.30 | E68: 46.2
B69: соль иодированная | D69: 0.7 | E69: 0.7
B70: хлеб пшеничный | D70: 12.6 | E70: 12.6
B71: молоко | D71: 18.20 | E71: 18.2
B72: сухари панировочные | D72: 7.0 | E72: 7.0
B73: масса полуфабриката | E73: 81.0
B74: масло растительное | D74: 3.0 | E74: 3.0
A75: Пюре Картофельное | C75: 140 | F75: 2.86 | G75: 4.48 | H75: 19.08 | I75: 128.10 | J75: 16.96 | K75: № 339 СБ дошк 2016
B76: Картофель | D76: 159.60 | E76: 119.70
B77: Молоко | D77: 22.12 | E77: 21.00
B78: Масло сливочное | D78: 5.00 | E78: 5.00
B79: соль иодированная | D79: 0.52 | E79: 0.52
A80: Чай с сахаром | C80: 180/6 | F80: 0.06 | G80: 0.02 | H80: 6.02 | I80: 24.10 | J80: 0.03 | K80: №410,411 Дели2016
B81: чай весовой | D81: 0.45 | E81: 0.45
B82: сахар | D82: 6.00 | E82: 6.00
B83: Вода | D83: 180.00 | E83: 180.00
A84: Кондитерское изделие | B84: вафли | C84: 20 | D84: 20.00 | E84: 20.00 | F84: 1.50 | G84: 1.96 | H84: 14.88 | I84: 83.40 | K84: табл 6 стр 136,Ддели +,2012
A85: Хлеб пшеничный | C85: 30 | D85: 30.00 | E85: 30.00 | F85: 2.28 | G85: 0.24 | H85: 14.76 | I85: 70.50 | J85: 0.00 | K85: табл 6 стр 134,Дели + 2012
A86: Итого: | C86: 629 | F86: =F64+F85+F84+F80+F75+F67 -> 20.91 | G86: =G64+G85+G84+G80+G75+G67 -> 15.46 | H86: =H64+H85+H84+H80+H75+H67 -> 72.75 | I86: =I64+I85+I84+I80+I75+I67 -> 509.82 | J86: =J64+J85+J84+J80+J75+J67 -> 18.71
A87: ВСЕГО: | C87: =C29+C33+C62+C86 -> 1816 | F87: =F29+F33+F62+F86 -> 53.71 | G87: =G29+G33+G62+G86 -> 45.44 | H87: =H29+H33+H62+H86 -> 237.72 | I87: =I29+I33+I62+I86 -> 1582.07 | J87: =J29+J33+J62+J86 -> 48.05
A89: День 2- ой
A90: Наименование блюд и | C90: Масса | D90: Кол - во | E90: Кол - во | F90: Пищевые вещества | I90: Энергетическая | J90: Витамин | K90: Сборник
A91: продуктов | C91: порции | D91: (в гр ) | E91: (в гр ) | I91: ценность | K91: рецептур
D92: брутто | E92: нетто | F92: белки | G92: жиры | H92: угл-ды | I92: Ккал | J92: С
B93: ЗАВТРАК
A94: Каша полбяная молочная с маслом сливочным | C94: 180/3 | F94: 4.81 | G94: 7.85 | H94: 29.38 | I94: 207.32 | J94: 0.86 | K94: ТТК №1Д
B95: Крупа полбяная | D95: 22.50 | E95: 22.50
B96: Молоко | D96: 90.00 | E96: 90.00
B97: вода | D97: 68.00 | E97: 68.00
B98: Сахар | D98: 2.50 | E98: 2.50
B99: соль иодированная | D99: 0.50 | E99: 0.50
B100: Масло сливочное | D100: 3.00 | E100: 3.00
A101: Какао с молоком | C101: 180/6 | F101: 3.67 | G101: 3.19 | H101: 5.99 | I101: 58.83 | J101: 1.43 | K101: №416 Дели2016
B102: Какао-порошок | D102: 2.00 | E102: 2.00
B103: Сахар | D103: 6.00 | E103: 6.00
B104: Молоко | D104: 110.00 | E104: 110.00
B105: Вода | D105: 80.00 | E105: 80.00
A106: Бутерброд с сыром, маслом сливочным | C106: 30/5/5 | F106: 3.61 | G106: 5.83 | H106: 15.49 | I106: 128.77 | J106: 0.04 | K106: №3 сб дошк2016
B107: Батон нарезной | D107: 30.00 | E107: 30.00
B108: Сыр | D108: 5.10 | E108: 5.00
B109: Масло сливочное | D109: 5.00 | E109: 5.00
A110: Итого: | C110: 409 | F110: =F106+F101+F94 -> 12.09 | G110: =G106+G101+G94 -> 16.87 | H110: 50.86 | I110: 394.92 | J110: 2.33
B111: 2 - ой ЗАВТРАК
A112: Сок в инд упаковке | C112: 125 | D112: 125 | E112: 125 | F112: 0.63 | G112: 0.00 | H112: 12.63 | I112: 53.00 | J112: 2.50 | K112: №418 Дели2016
A113: Итого: | C113: 125 | F113: =F112 -> 0.63 | G113: =G112 -> 0.00 | H113: 12.63 | I113: 53.00 | J113: 2.50
B114: ОБЕД
A115: Салат из свежей капусты | C115: 60 | F115: 1.56 | G115: 4.43 | H115: 1.94 | I115: 53.88 | J115: 2.79 | K115: №21 сб дошк 2016
B116: капуста свежая | D116: 70.00 | E116: 55.50
B117: масса прогретой капусты | E117: 50.00
B118: морковь | D118: 7.50 | E118: 6.00
B119: Сахар | D119: 1.00 | E119: 1.00
B120: Масло растительное | D120: 3.00 | E120: 3.00
B121: соль иодированная | D121: 0.30 | E121: 0.30
A122: Борщ со свежей капустой, картофелем на курином бульоне, со сметаной | C122: 180/7 | F122: 1.50 | G122: 4.77 | H122: 8.11 | I122: 87.64 | J122: 7.71 | K122: №63,сбдошк2016
B123: Капуста свежая | D123: 18.75 | E123: 15.00
B124: Картофель | D124: 19.95 | E124: 15.00
B125: Морковь | D125: 12.50 | E125: 10.00
B126: Лук репчатый | D126: 9.60 | E126: 8.00
B127: Свекла | D127: 38.40 | E127: 30.00
B128: Сахар | D128: 0.90 | E128: 0.90
B129: Томат-паста | D129: 1.00 | E129: 1.00
B130: Масло растительное | D130: 3.60 | E130: 3.60
B131: соль иодированная | D131: 0.60 | E131: 0.60
B132: Бульон | D132: 140.00 | E132: 140.00
B133: Сметана | D133: 7.00 | E133: 7.00
A134: Биточки "Домашние" | C134: 70 | F134: 10.38 | G134: 8.10 | H134: 14.95 | I134: 154.75 | J134: 0.07 | K134: Акт проработки от 25.12.2018 №569
B135: цыплята - бройлеры с/м | D135: 84.9 | E135: 55.13
B136: или фарш куриный | D136: 57.89 | E136: 55.13
B137: морковь | D137: 16.53 | E137: 13.12
B138: Лук репчатый | D138: 18 | E138: 15
B139: Масло растительное | D139: 1.5 | E139: 1.5
B140: масса припущенного лука | E140: 8
B141: соль иодированная | D141: 0.57 | E141: 0.57
B142: яйцо | D142: 0.84 | E142: 0.7
B143: Мука пшеничная | D143: 5.25 | E143: 5.25
B144: масса полуфабриката | E144: 82.6
B145: масло растительное | D145: 2.6 | E145: 2.6
A146: Каша гречневая рассыпчатая с овощами с маслом сливочным | C146: 130/3 | F146: 4.09 | G146: 5.97 | H146: 20.33 | I146: 172.30 | J146: 1.36 | K146: №180, сб дошк2016
B147: крупа гречневая | D147: 54.70 | E147: 54.70
B148: вода питьевая | D148: 82.00 | E148: 82.00
B149: соль иодированная | D149: 0.33 | E149: 0.33
B150: масса каши | E150: 115.00
B151: морковь | D151: 22.00 | E151: 17.00
B152: лук репчатый | D152: 2.40 | E152: 2.00
B153: масса каши с овощами | E153: 130.00
B154: масло сливочное | D154: 3.00 | E154: 3.00
A155: Напиток из сухофруктов | C155: 180 | F155: 0.60 | G155: 0.08 | H155: 16.81 | I155: 79.38 | J155: 0.65 | K155: №394 Сб дошк 2016
B156: сухофрукты | D156: 15.30 | E156: 15.00
B157: Сахар | D157: 6.00 | E157: 6.00
B158: вода | D158: 183.00 | E158: 183.00
A159: Хлеб пшеничный | C159: 25 | D159: 25.00 | E159: 25.00 | F159: 1.90 | G159: 0.20 | H159: 12.30 | I159: 58.75 | J159: 0.00 | K159: табл 6 стр 134,Дели + 2012
A160: Хлеб ржаной | C160: 45 | D160: 45.00 | E160: 45.00 | F160: 2.97 | G160: 0.54 | H160: 17.84 | I160: 89.19 | K160: табл 6 стр 144,Дели + 2012
A161: Итого: | C161: 700 | F161: =F160+F159+F155+F146+F134+F122+F115 -> 23.00 | G161: =G160+G159+G155+G146+G134+G122+G115 -> 24.09 | H161: 92.28 | I161: 695.89 | J161: 12.58
B162: УПЛОТНЕННЫЙ ПОЛДНИК
A163: Кисломолочный напиток | C163: 180 | F163: 5.22 | G163: 4.50 | H163: 7.56 | I163: 92.00 | J163: 0.54 | K163: №420 СБ дошк 2016
A164: (Кефир,ряженка,катык,напиток ацидофильный) | B164: кисломолочный напиток | D164: 185 | E164: 180
A165: Запеканка творожная с повидлом | C165: 130/20 | F165: 22.82 | G165: 20.06 | H165: 25.55 | I165: 372.60 | J165: 0.54 | K165: №251, сбдошк 2016
B166: Творог | D166: 122.00 | E166: 119.20
B167: Крупа манная | D167: 7.80 | E167: 7.80
B168: Яйцо | D168: 6.24 | E168: 5.20
B169: Сахар | D169: 10.00 | E169: 10.00
B170: Сметана | D170: 5.20 | E170: 5.20
B171: Масло сливочное | D171: 5.20 | E171: 5.20
B172: Сухари панировочные | D172: 5.20 | E172: 5.20
B173: соль иодированная | D173: 0.65 | E173: 0.65
B174: повидло | D174: 20.40 | E174: 20.00
A175: Чай с сахаром и лимоном | C175: 180/6/7 | F175: 0.13 | G175: 0.03 | H175: 6.23 | I175: 26.48 | J175: 2.83 | K175: №412 Дели2016
B176: чай весовой | D176: 0.45 | E176: 0.45
B177: Сахар | D177: 6.00 | E177: 6.00
B178: лимон | D178: 8.00 | E178: 7.00
B179: Вода | D179: 180.00 | E179: 180.00
A180: Булочка дорожная | C180: 50 | F180: 3.39 | G180: 6.98 | H180: 26.07 | I180: 181.00 | K180: №453 сб дошк2016
B181: Мука пшеничная | D181: 30.50 | E181: 30.00
B182: мука пшеничная на подпыл | D182: 1.00 | E182: 1.00
B183: Сахар | D183: 6.00 | E183: 6.00
B184: Масло сливочное | D184: 6.50 | E184: 6.50
B185: соль иодированная | D185: 0.30 | E185: 0.30
B186: дрожжи сухие | D186: 0.20 | E186: 0.20
B187: вода | D187: 15.30 | E187: 15.30
B188: масса полуфабриката | E188: 57.00
B189: для крошки:
B190: мука пшеничная | D190: 1.20 | E190: 1.20
B191: масло сливочное | D191: 1.00 | E191: 1.00
B192: масса крошки | E192: 2.00
B193: масло растительное для смазки изделй | D193: 1.00 | E193: 1.00
A194: Итого: | C194: 573 | F194: =F163+F180+F175+F165 -> 31.56 | G194: =G163+G180+G175+G165 -> 31.57 | H194: =H163+H180+H175+H165 -> 65.41 | I194: =I163+I180+I175+I165 -> 672.08 | J194: =J163+J180+J175+J165 -> 3.91
A195: ВСЕГО: | C195: =C110+C113+C161+C194 -> 1807 | F195: =F110+F113+F161+F194 -> 67.28 | G195: =G110+G113+G161+G194 -> 72.53 | H195: =H110+H113+H161+H194 -> 221.17 | I195: =I110+I113+I161+I194 -> 1815.89 | J195: =J110+J113+J161+J194 -> 21.32
A197: День 3 - ий
A198: Наименование блюд и | C198: Масса | D198: Кол - во | E198: Кол - во | F198: Пищевые вещества | I198: Энергетическая | J198: Витамин | K198: Сборник
A199: продуктов | C199: порции | D199: (в гр ) | E199: (в гр ) | I199: ценность | K199: рецептур
D200: брутто | E200: нетто | F200: белки | G200: жиры | H200: угл-ды | I200: Ккал | J200: С
B201: ЗАВТРАК
A202: Каша "Дружба" молочная с маслом сливочным | C202: 180/5 | F202: 5.36 | G202: 9.85 | H202: 29.49 | I202: 229.05 | J202: 0.86 | K202: ТТК №7Д
B203: Крупа рисовая | D203: 13.50 | E203: 13.50
B204: Крупа пшенная | D204: 10.00 | E204: 10.00
... 818 more rows
